bitfinex/quotes_SOLUSD_20241029
["timestamp","ask_amount","ask_price","bid_price","bid_amount"]
[1730210304283,15.9349,179.7,179.66,39.43164112]
[1730210305069,15.9349,179.7,179.67,39.43164112]
[1730210305259,46.03634112,179.72,179.67,39.43164112]
[1730210306187,39.43164112,179.73,179.68,39.43164112]
[1730210306478,15.9349,179.74,179.7,39.43164112]
[1730210306684,6.2723,179.76,179.72,39.43164112]
[1730210306859,45.70394112,179.76,179.71,39.43164112]
[1730210307983,45.70394112,179.76,179.7,39.43164112]
[1730210307984,39.43164112,179.75,179.7,39.43164112]
[1730210308175,39.43164112,179.73,179.68,39.43164112]
[1730210308482,39.43164112,179.72,179.67,53.34534112]
[1730210308691,39.43164112,179.73,179.68,39.43164112]
[1730210309681,39.43164112,179.75,179.7,39.43164112]
[1730210310562,39.43164112,179.77,179.72,39.43164112]
[1730210311273,15.1592,179.78,179.74,39.43164112]
[1730210311659,54.59084112,179.78,179.73,39.43164112]
[1730210311883,39.43164112,179.77,179.72,39.43164112]
[1730210312267,39.43164112,179.76,179.71,39.43164112]
[1730210312463,39.43164112,179.77,179.72,39.43164112]
[1730210313181,54.59084112,179.78,179.73,39.43164112]
[1730210315466,39.43164112,179.77,179.72,39.43164112]
[1730210316886,54.59084112,179.78,179.73,39.43164112]
[1730210317678,39.43164112,179.77,179.72,39.43164112]
[1730210318192,54.59084112,179.78,179.72,39.43164112]
[1730210318994,54.59084112,179.78,179.73,39.43164112]
[1730210319174,39.43164112,179.77,179.72,39.43164112]
[1730210319484,15.1592,179.78,179.74,39.43164112]
[1730210320173,54.59084112,179.78,179.73,39.43164112]
[1730210321871,15.1592,179.78,179.74,39.43164112]
[1730210322071,39.43164112,179.77,179.73,39.43164112]
[1730210322286,39.43164112,179.77,179.72,39.43164112]
[1730210323171,39.43164112,179.77,179.69,39.43164112]
[1730210323172,39.43164112,179.74,179.69,39.43164112]
[1730210323693,39.43164112,179.75,179.7,39.43164112]
[1730210324980,39.43164112,179.75,179.71,39.43164112]
[1730210326387,39.43164112,179.75,179.7,39.43164112]
[1730210327370,39.43164112,179.75,179.71,39.43164112]
[1730210327684,39.43164112,179.76,179.71,39.43164112]
[1730210328897,39.43164112,179.75,179.7,39.43164112]
[1730210329387,23.776884,179.77,179.66,19.4811]
[1730210329388,39.43164112,179.76,179.71,39.43164112]
[1730210331004,39.43164112,179.79,179.74,39.43164112]
[1730210331305,15.2113,179.83,179.78,39.43164112]
[1730210331515,39.43164112,179.86,179.8,39.43164112]
[1730210331799,39.43164112,179.85,179.8,39.43164112]
[1730210332003,39.43164112,179.81,179.76,39.43164112]
[1730210333009,39.43164112,179.81,179.77,5.5626]
[1730210333593,39.43164112,179.81,179.77,19.4692]
[1730210333910,39.43164112,179.79,179.77,13.9066]
[1730210334608,39.43164112,179.78,179.73,13.9092]
[1730210334989,39.43164112,179.77,179.73,19.4731]
[1730210335485,39.43164112,179.76,179.73,19.4731]
[1730210335687,39.43164112,179.77,179.73,19.4731]
[1730210336491,39.43164112,179.76,179.73,19.4731]
[1730210336792,39.43164112,179.77,179.73,13.9092]
[1730210336989,39.43164112,179.8,179.73,13.9092]
[1730210337810,39.43164112,179.79,179.73,13.9092]
[1730210339004,39.43164112,179.77,179.73,13.9092]
[1730210339199,39.43164112,179.79,179.73,13.9092]
[1730210339497,39.43164112,179.8,179.73,13.9092]
[1730210339815,39.43164112,179.79,179.73,13.9092]
[1730210340391,39.43164112,179.8,179.73,13.9092]
[1730210340593,39.43164112,179.82,179.73,47.2926]
[1730210341102,39.43164112,179.81,179.73,47.2926]
[1730210341416,39.43164112,179.85,179.76,0.1]
[1730210341615,39.43164112,179.84,179.76,0.1]
[1730210342011,39.43164112,179.84,179.76,0.2]
[1730210342312,39.43164112,179.85,179.76,0.2]
[1730210342698,39.43164112,179.84,179.77,19.4692]
[1730210343013,39.43164112,179.83,179.77,19.4692]
[1730210343214,5.5567,179.96,179.78,6.366]
[1730210343419,39.43164112,179.86,179.78,6.366]
[1730210343623,5.5567,179.96,179.78,6.266]
[1730210343624,39.43164112,179.84,179.78,6.266]
[1730210343796,39.43164112,179.85,179.78,6.266]
[1730210344314,39.43164112,179.86,179.78,13.26404668]
[1730210345119,39.43164112,179.86,179.79,26.36514668]
[1730210345714,39.43164112,179.87,179.79,26.36514668]
[1730210346220,39.43164112,179.9,179.81,0.1]
[1730210346398,16.4649,179.95,179.8,40.137184]
[1730210346399,39.43164112,179.94,179.86,0.1]
[1730210346800,39.43164112,179.96,179.87,6.99804668]
[1730210347021,39.43164112,179.97,179.88,35.7176]
[1730210347210,39.43164112,179.98,179.88,42.61564668]
[1730210347412,39.32608671,179.96,179.89,6.89804668]
[1730210347818,39.32608671,179.95,179.89,6.89804668]
[1730210348212,39.32608671,179.96,179.9,20.0]
[1730210348521,39.32608671,179.97,179.9,20.1]
[1730210348725,39.32608671,179.98,179.9,26.99804668]
[1730210348922,39.32608671,179.97,179.9,26.99804668]
[1730210349102,39.32608671,179.97,179.91,19.4541]
[1730210349303,39.32608671,179.98,179.91,19.4541]
[1730210349503,39.32608671,179.99,179.92,23.876884]
[1730210349922,39.32608671,180.0,179.92,23.876884]
[1730210350108,39.32608671,179.98,179.91,26.45214668]
[1730210350308,39.32608671,179.98,179.92,20.0]
[1730210350513,39.32608671,179.97,179.91,26.35214668]
[1730210350723,39.32608671,179.96,179.91,19.4541]
[1730210351211,39.32608671,179.97,179.91,13.8958]
[1730210351407,39.32608671,179.95,179.91,13.8958]
[1730210351725,39.32608671,179.95,179.9,5.5586]
[1730210351918,39.32608671,179.96,179.9,12.45664668]
[1730210352125,39.32608671,179.94,179.91,6.89804668]
[1730210352716,39.32608671,179.92,179.91,6.89804668]
[1730210353615,39.32608671,179.92,179.87,5.5595]
[1730210353930,39.32608671,179.89,179.87,12.45754668]
[1730210354310,39.32608671,179.88,179.87,6.89804668]
[1730210354829,39.32608671,179.89,179.87,6.89804668]
[1730210355016,39.35876745,179.88,179.87,6.89804668]
[1730210356230,39.35876745,179.89,179.87,6.89804668]
[1730210356429,39.35876745,179.89,179.87,12.45734668]
[1730210356808,39.35876745,179.88,179.87,6.89804668]
[1730210358237,39.35876745,179.88,179.82,6.4383]
[1730210358548,39.35876745,179.85,179.82,11.9992]
[1730210358708,39.35876745,179.85,179.82,32.79994668]
[1730210358907,39.35876745,179.84,179.82,32.79994668]
[1730210360221,39.35876745,179.85,179.82,32.79994668]
[1730210360415,16.3858,179.92,179.83,6.89804668]
[1730210360615,39.35876745,179.92,179.85,0.1]
[1730210360819,16.3858,180.0,179.86,7.23749112]
[1730210360820,39.35876745,179.87,179.86,7.23749112]
[1730210361129,39.35876745,179.88,179.86,7.23749112]
[1730210361426,39.35876745,179.89,179.86,7.23749112]
[1730210362028,39.35876745,179.89,179.86,26.69669112]
[1730210362211,39.35876745,179.92,179.86,26.69669112]
[1730210362412,39.35876745,179.92,179.86,42.01359112]
[1730210362630,39.35876745,179.93,179.87,23.776884]
[1730210362812,39.35876745,179.89,179.87,7.23749112]
[1730210364236,39.35876745,179.9,179.87,7.23749112]
[1730210364426,39.35876745,179.9,179.87,26.69579112]
[1730210364938,39.35876745,179.88,179.84,6.0915]
[1730210365119,39.35876745,179.87,179.84,13.32899112]
[1730210365527,39.35876745,179.88,179.84,32.79059112]
[1730210365722,39.35876745,179.88,179.85,7.23749112]
[1730210366030,39.35876745,179.86,179.8,19.69053918]
[1730210366229,39.35876745,179.81,179.8,45.25223918]
[1730210366552,39.35876745,179.83,179.8,52.4897303]
[1730210366727,39.35876745,179.83,179.81,7.23749112]
[1730210367045,39.35876745,179.82,179.81,7.23749112]
[1730210367229,39.35876745,179.82,179.8,5.78653918]
[1730210367437,20.8264,179.91,179.8,5.78653918]
[1730210367438,39.35876745,179.81,179.8,5.78653918]
[1730210369749,39.35876745,179.82,179.8,5.78653918]
[1730210369945,39.35876745,179.84,179.8,25.25243918]
[1730210370249,39.35876745,179.84,179.81,7.23749112]
[1730210370428,39.35876745,179.83,179.81,7.23749112]
[1730210370936,39.35876745,179.84,179.81,7.23749112]
[1730210371145,15.268,179.91,179.82,23.776884]
[1730210371146,39.35876745,179.85,179.82,23.776884]
[1730210371335,39.35876745,179.86,179.82,7.23749112]
[1730210372049,39.35876745,179.86,179.82,26.70099112]
[1730210373830,39.35876745,179.86,179.83,7.23749112]
[1730210374257,15.268,179.91,179.83,7.23749112]
[1730210374258,39.35876745,179.87,179.83,26.70029112]
[1730210375048,39.35876745,179.89,179.83,26.80029112]
[1730210375231,39.35876745,179.9,179.84,20.1]
[1730210375434,15.0868,179.96,179.84,20.1]
[1730210375435,39.35876745,179.89,179.85,7.23749112]
[1730210376227,39.35876745,179.88,179.85,7.23749112]
[1730210376951,20.6437,179.96,179.85,7.23749112]
[1730210377128,39.35876745,179.86,179.85,27.23749112]
[1730210377462,39.35876745,179.86,179.85,7.23749112]
[1730210378637,39.35876745,179.86,179.8,14.03545172]
[1730210378958,39.35876745,179.81,179.8,6.7979606]
[1730210379259,39.35876745,179.81,179.8,1.0]
[1730210379754,39.35876745,179.81,179.8,8.23749112]
[1730210381352,39.35876745,179.81,179.8,1.0]
[1730210383466,39.35876745,179.81,179.8,8.23749112]
[1730210383652,39.35876745,179.82,179.8,8.23749112]
[1730210383858,39.35876745,179.82,179.81,7.23749112]
[1730210388255,39.35876745,179.82,179.8,1.0]
[1730210388470,39.35876745,179.81,179.8,1.0]
[1730210389576,15.9877,179.88,179.8,1.0]
[1730210389577,39.35876745,179.82,179.8,8.23749112]
[1730210389960,39.35876745,179.81,179.8,8.23749112]
[1730210390179,39.35876745,179.82,179.8,8.23749112]
[1730210390379,39.35876745,179.82,179.81,7.23749112]
[1730210390578,39.35876745,179.83,179.81,7.23749112]
[1730210390782,39.35876745,179.85,179.81,7.23749112]
[1730210390969,39.35876745,179.85,179.82,20.0]
[1730210391158,39.35876745,179.85,179.82,27.23749112]
[1730210393582,39.35876745,179.85,179.83,7.23749112]
[1730210393979,39.35876745,179.84,179.83,7.23749112]
[1730210394363,39.35876745,179.84,179.8,1.0]
[1730210394569,39.35876745,179.81,179.8,1.0]
[1730210397069,39.35876745,179.82,179.8,1.0]
[1730210397272,39.35876745,179.83,179.8,8.23749112]
[1730210397484,39.35876745,179.83,179.81,7.23749112]
[1730210397688,39.35876745,179.84,179.81,7.23749112]
[1730210397891,22.626,179.91,179.81,7.23749112]
[1730210397892,39.35876745,179.86,179.81,46.59625857]
[1730210398064,39.35876745,179.85,179.81,7.23749112]
[1730210398261,39.35876745,179.85,179.81,12.79869112]
[1730210399066,39.35876745,179.84,179.81,12.79869112]
[1730210400161,39.35876745,179.83,179.81,7.23749112]
[1730210400496,39.35876745,179.82,179.81,27.23749112]
[1730210401182,39.38423548,179.82,179.81,7.23749112]
[1730210401387,39.38423548,179.82,179.8,1.0]
[1730210401571,39.38423548,179.83,179.8,1.0]
[1730210401773,15.8653,179.94,179.81,0.2]
[1730210401976,15.8653,179.94,179.82,6.30459668]
[1730210402292,15.8653,179.94,179.84,19.4616]
[1730210402468,0.2,180.07,179.86,0.1]
[1730210402670,15.8653,180.05,179.89,20.0]
[1730210402871,15.8653,180.05,179.95,39.48423548]
[1730210403106,39.38423548,180.02,179.96,59.38423548]
[1730210403271,15.8653,180.05,179.96,20.0]
[1730210403468,39.38423548,180.0,179.95,39.38423548]
[1730210403666,39.38423548,180.0,179.95,23.776884]
[1730210403999,39.38423548,179.99,179.94,20.0]
[1730210404177,39.38423548,179.99,179.94,59.38423548]
[1730210404510,39.38423548,179.99,179.95,19.4497]
[1730210404789,39.38423548,179.96,179.93,6.5543]
[1730210405089,39.38423548,179.94,179.91,20.0]
[1730210405293,39.38423548,179.96,179.91,78.83813548]
[1730210405473,39.38423548,179.98,179.93,63.16111948]
[1730210405788,15.8653,180.05,179.92,0.1]
[1730210405789,39.38423548,179.96,179.94,20.0]
[1730210405998,39.38423548,179.98,179.93,20.0]
[1730210406293,39.38423548,179.96,179.93,20.0]
[1730210406666,39.38423548,179.96,179.93,39.4518]
[1730210407468,39.38423548,179.97,179.92,39.38423548]
[1730210407664,39.38423548,179.97,179.93,20.0]
[1730210407899,39.38423548,179.94,179.9,19.4552]
[1730210408079,39.38423548,179.95,179.9,58.83943548]
[1730210408276,23.776884,180.04,179.9,19.4552]
[1730210409081,29.331184,180.04,179.91,20.0]
[1730210409283,39.38423548,179.94,179.9,19.4552]
[1730210409482,39.38423548,179.93,179.9,19.4552]
[1730210409886,39.38423548,179.92,179.9,13.8966]
[1730210410077,39.38423548,179.93,179.9,19.4552]
[1730210410273,39.38423548,179.96,179.91,39.38423548]
[1730210410494,39.38423548,179.95,179.92,20.0]
[1730210410708,39.38423548,179.95,179.91,20.0]
[1730210410872,15.1335,180.01,179.91,20.0]
[1730210410873,39.38423548,179.96,179.91,20.0]
[1730210411202,39.38423548,179.93,179.91,20.0]
[1730210411504,39.38423548,179.94,179.9,20.0]
[1730210411875,39.38423548,179.92,179.9,20.0]
[1730210412697,39.38423548,179.91,179.9,20.0]
[1730210412902,39.38423548,179.91,179.89,13.8973]
[1730210413276,39.38423548,179.92,179.89,13.8973]
[1730210413475,39.38423548,179.91,179.89,13.8973]
[1730210413678,39.38423548,179.91,179.89,19.4562]
[1730210413874,39.38423548,179.9,179.89,19.4562]
[1730210414092,39.38423548,179.9,179.89,39.4562]
[1730210414410,39.38423548,179.9,179.85,13.8998]
[1730210414575,39.38423548,179.86,179.85,13.8998]
[1730210414886,39.38423548,179.86,179.84,5.79435577]
[1730210415086,39.38423548,179.85,179.8,1.0]
[1730210415296,6.3283,179.91,179.8,1.0]
[1730210415297,39.38423548,179.81,179.8,1.0]
[1730210415489,6.3283,179.91,179.8,20.466]
[1730210415695,39.38423548,179.82,179.8,14.9043]
[1730210416079,39.38423548,179.81,179.8,14.9043]
[1730210416282,39.38423548,179.81,179.8,1.0]
[1730210416699,45.72733548,179.81,179.8,1.0]
[1730210418495,6.3431,179.81,179.73,5.5638]
[1730210418710,39.38423548,179.75,179.73,5.5638]
[1730210419005,39.38423548,179.75,179.72,25.5641]
[1730210419177,39.38423548,179.78,179.73,39.38423548]
[1730210419715,39.38423548,179.75,179.72,39.4746]
[1730210419889,39.38423548,179.76,179.72,39.4746]
[1730210420927,39.38423548,179.81,179.75,39.38423548]
[1730210421159,16.0183,179.83,179.74,20.0]
[1730210421160,39.38423548,179.78,179.74,20.0]
[1730210421379,39.38423548,179.77,179.74,20.0]
[1730210421736,16.0183,179.83,179.73,20.0]
[1730210422820,39.38423548,179.8,179.76,20.0]
[1730210423047,16.0183,179.83,179.79,39.38423548]
[1730210423245,16.0183,179.83,179.82,39.38423548]
[1730210424347,16.0183,179.83,179.81,39.38423548]
[1730210424520,16.0183,179.83,179.79,39.38423548]
[1730210424722,39.38423548,179.82,179.77,39.38423548]
[1730210425023,55.40253548,179.83,179.77,39.38423548]
[1730210425437,39.38423548,179.78,179.71,39.38423548]
[1730210425765,6.398,179.79,179.74,39.38423548]
[1730210425971,6.398,179.79,179.75,39.38423548]
[1730210426138,39.38423548,179.77,179.72,39.38423548]
[1730210426326,39.38423548,179.75,179.7,39.38423548]
[1730210426512,39.38423548,179.76,179.71,39.38423548]
[1730210426721,39.38423548,179.78,179.73,39.38423548]
[1730210427124,6.398,179.79,179.75,39.38423548]
[1730210427331,39.38423548,179.77,179.72,39.38423548]
[1730210427636,45.78223548,179.79,179.74,39.38423548]
[1730210427832,39.38423548,179.78,179.73,39.38423548]
[1730210428047,39.38423548,179.75,179.7,39.38423548]
[1730210428227,45.78223548,179.79,179.74,39.38423548]
[1730210428538,6.398,179.79,179.75,39.38423548]
[1730210428732,45.78223548,179.79,179.74,39.38423548]
[1730210428926,6.398,179.79,179.75,39.38423548]
[1730210429248,6.398,179.79,179.76,39.38423548]
[1730210429481,6.398,179.79,179.75,39.38423548]
[1730210429646,45.78223548,179.79,179.74,39.38423548]
[1730210430111,39.38423548,179.77,179.72,39.38423548]
[1730210430313,63.16111948,179.78,179.73,39.38423548]
[1730210430792,39.38423548,179.76,179.65,19.4815]
[1730210430993,63.16111948,179.78,179.73,39.38423548]
[1730210431213,39.38423548,179.77,179.72,39.38423548]
[1730210431414,39.38423548,179.76,179.71,39.38423548]
[1730210431631,39.38423548,179.73,179.68,39.38423548]
[1730210431799,63.16111948,179.74,179.69,39.38423548]
[1730210431995,39.38423548,179.73,179.68,39.38423548]
[1730210432192,39.38423548,179.73,179.58,6.5335]
[1730210432193,63.16111948,179.7,179.65,39.38423548]
[1730210432402,39.38423548,179.69,179.64,39.38423548]
[1730210432693,6.1483,179.71,179.58,19.4897]
[1730210433115,6.1483,179.71,179.68,39.38423548]
[1730210433434,6.1483,179.71,179.67,39.38423548]
[1730210434293,6.1483,179.71,179.67,39.4506836]
[1730210434495,6.1483,179.71,179.68,39.4506836]
[1730210434825,6.1483,179.71,179.7,39.4506836]
[1730210435203,22.6379,179.75,179.7,39.4506836]
[1730210435525,22.6379,179.75,179.73,39.4506836]
[1730210435731,22.6379,179.75,179.71,39.4506836]
[1730210436320,23.776884,179.74,179.7,39.4506836]
[1730210436519,23.776884,179.74,179.72,39.4506836]
[1730210437033,23.776884,179.74,179.7,39.4506836]
[1730210437329,22.6379,179.75,179.73,39.4506836]
[1730210437497,6.1775,179.79,179.74,39.4506836]
[1730210437702,6.1775,179.79,179.77,39.4506836]
[1730210438815,6.1775,179.79,179.76,39.4506836]
[1730210439321,6.1775,179.79,179.72,39.4506836]
[1730210439322,23.776884,179.76,179.72,39.4506836]
[1730210439523,23.776884,179.76,179.73,39.4506836]
[1730210439901,23.776884,179.75,179.71,39.4506836]
[1730210440758,23.776884,179.77,179.73,39.4506836]
[1730210441332,23.776884,179.77,179.64,19.4833]
[1730210441537,23.776884,179.78,179.74,39.4506836]
[1730210441737,39.4506836,179.76,179.7,39.4506836]
[1730210441949,39.4506836,179.76,179.71,39.4506836]
[1730210442252,39.4506836,179.73,179.68,39.4506836]
[1730210442454,39.4506836,179.72,179.67,39.4506836]
[1730210442661,39.4506836,179.71,179.66,39.4506836]
[1730210442826,39.4506836,179.68,179.63,39.4506836]
[1730210443259,39.4506836,179.67,179.62,39.4506836]
[1730210443629,16.2256,179.7,179.61,39.4506836]
[1730210443630,63.2275676,179.66,179.61,39.4506836]
[1730210443954,39.4506836,179.67,179.62,39.4506836]
[1730210444126,16.3256,179.7,179.57,19.4907]
[1730210444127,39.4506836,179.68,179.63,39.4506836]
[1730210444327,39.4506836,179.68,179.64,39.4506836]
[1730210444951,39.4506836,179.68,179.63,39.4506836]
[1730210445152,54.5450836,179.73,179.67,39.4506836]
[1730210445331,54.5450836,179.73,179.68,39.4506836]
[1730210445528,39.4506836,179.71,179.67,39.4506836]
[1730210445745,15.0944,179.73,179.69,39.4506836]
[1730210446059,15.0944,179.73,179.7,39.4506836]
[1730210446551,15.0944,179.73,179.69,39.4506836]
[1730210446738,15.0944,179.73,179.7,39.4506836]
[1730210446938,15.0944,179.73,179.69,39.4506836]
[1730210447423,15.0944,179.73,179.7,39.4506836]
[1730210447858,15.0944,179.73,179.69,39.4506836]
[1730210448164,39.4506836,179.72,179.67,39.4506836]
[1730210448368,39.4506836,179.7,179.65,39.4506836]
[1730210448659,63.2275676,179.72,179.68,39.4506836]
[1730210448834,54.5450836,179.73,179.68,39.4506836]
[1730210449229,15.0944,179.73,179.69,39.4506836]
[1730210449430,15.0944,179.73,179.7,39.4506836]
[1730210449642,15.0944,179.73,179.6,45.2642233]
[1730210449643,15.0944,179.73,179.69,39.4506836]
[1730210449855,54.5450836,179.73,179.68,39.4506836]
[1730210450066,39.4506836,179.69,179.64,39.4506836]
[1730210450444,39.4506836,179.68,179.63,39.4506836]
[1730210451457,39.4506836,179.67,179.62,39.4506836]
[1730210451764,39.4506836,179.67,179.57,22.3668]
[1730210451765,39.4506836,179.64,179.59,39.4506836]
[1730210451933,39.4506836,179.64,179.55,0.5968412]
[1730210452135,39.4506836,179.65,179.6,39.4506836]
[1730210452431,39.4506836,179.65,179.61,39.4506836]
[1730210452639,39.4506836,179.67,179.62,39.4506836]
[1730210452839,39.4506836,179.66,179.61,39.4506836]
[1730210453657,39.4506836,179.66,179.62,39.4506836]
[1730210453829,0.1,179.69,179.6,39.4506836]
[1730210453830,39.4506836,179.64,179.6,39.4506836]
[1730210454031,39.4506836,179.68,179.63,39.4506836]
[1730210454451,39.4506836,179.67,179.62,39.4506836]
[1730210454861,39.4506836,179.68,179.56,19.492]
[1730210455027,23.776884,179.7,179.66,39.4506836]
[1730210455433,39.4506836,179.71,179.66,39.4506836]
[1730210456363,39.4506836,179.7,179.65,39.4506836]
[1730210456670,39.4506836,179.68,179.63,39.4506836]
[1730210457775,39.4506836,179.7,179.65,39.4506836]
[1730210457956,20.7583,179.73,179.56,47.3378]
[1730210457957,39.4506836,179.71,179.67,39.4506836]
[1730210458275,39.4506836,179.7,179.65,39.4506836]
[1730210458777,39.4506836,179.71,179.66,39.4506836]
[1730210458952,39.4506836,179.72,179.67,39.4506836]
[1730210459158,39.4506836,179.7,179.66,39.4506836]
[1730210459487,15.0944,179.73,179.66,39.4506836]
[1730210459488,39.4506836,179.71,179.66,39.4506836]
[1730210460364,39.4506836,179.69,179.64,39.4506836]
[1730210460567,39.4506836,179.7,179.65,39.4506836]
[1730210462052,39.4506836,179.69,179.64,39.4506836]
[1730210462259,39.4506836,179.68,179.63,39.4506836]
[1730210462453,39.4506836,179.67,179.62,39.4506836]
[1730210462757,39.4506836,179.7,179.66,39.4506836]
[1730210462973,39.4506836,179.68,179.63,39.4506836]
[1730210463181,39.4506836,179.72,179.67,39.4506836]
[1730210463363,39.4506836,179.72,179.59,19.4887]
[1730210463364,15.0944,179.73,179.69,39.4506836]
[1730210463870,65.96418524,179.78,179.72,39.4506836]
[1730210464067,39.4506836,179.81,179.76,39.4506836]
[1730210464270,55.2330836,179.83,179.78,39.4506836]
[1730210464471,39.4506836,179.79,179.74,39.4506836]
[1730210464669,15.7824,179.83,179.73,39.4506836]
[1730210464878,39.4506836,179.78,179.73,39.4506836]
[1730210465077,15.8824,179.83,179.73,39.4506836]
[1730210465078,39.4506836,179.79,179.73,39.4506836]
[1730210465282,39.4506836,179.8,179.75,39.4506836]
[1730210465685,39.4506836,179.82,179.77,39.4506836]
[1730210466059,39.4506836,179.83,179.78,39.4506836]
[1730210466290,39.4506836,179.86,179.81,39.4506836]
[1730210466496,55.0142836,179.87,179.82,39.4506836]
[1730210466676,15.5636,179.87,179.83,39.4506836]
[1730210467872,55.0142836,179.87,179.82,39.4506836]
[1730210468366,15.5636,179.87,179.83,39.4506836]
[1730210468573,55.0142836,179.87,179.82,39.4506836]
[1730210469479,39.4506836,179.86,179.81,39.4506836]
[1730210469677,39.4506836,179.88,179.83,39.4506836]
[1730210469881,39.4506836,179.89,179.84,39.4506836]
[1730210470061,39.4506836,179.9,179.85,39.4506836]
[1730210470267,55.1725836,179.92,179.87,39.4506836]
[1730210470470,15.7219,179.92,179.88,39.4506836]
[1730210470965,39.4506836,179.94,179.89,39.4506836]
[1730210471193,39.4506836,179.95,179.9,39.4506836]
[1730210471996,39.4506836,179.92,179.87,39.4506836]
[1730210472181,39.4506836,179.89,179.84,39.4506836]
[1730210472365,0.1,179.94,179.81,15.7339]
[1730210472366,39.4506836,179.88,179.83,39.4506836]
[1730210472868,39.4506836,179.86,179.81,39.4506836]
[1730210473194,39.4506836,179.85,179.8,39.4506836]
[1730210473371,5.5587,179.9,179.79,39.4506836]
[1730210473372,39.4506836,179.84,179.79,39.4506836]
[1730210473571,39.4506836,179.86,179.81,39.4506836]
[1730210473970,39.4506836,179.87,179.82,39.4506836]
[1730210474195,39.4506836,179.86,179.81,39.4506836]
[1730210474592,39.4506836,179.86,179.8,39.4506836]
[1730210475085,39.4506836,179.83,179.78,39.4506836]
[1730210475268,39.4506836,179.86,179.81,39.4506836]
[1730210476088,54.5556836,179.87,179.82,39.4506836]
[1730210476288,6.5883,179.88,179.75,20.0]
[1730210476289,39.4506836,179.88,179.83,39.4506836]
[1730210476604,39.4506836,179.89,179.84,39.4506836]
[1730210476782,15.8793,179.92,179.75,20.0]
[1730210476783,39.4506836,179.92,179.87,39.4506836]
[1730210477108,55.5303836,179.96,179.91,39.4506836]
[1730210477282,39.4506836,179.94,179.89,39.4506836]
[1730210477478,39.4506836,179.91,179.86,39.4506836]
[1730210477689,39.4506836,179.93,179.88,39.4506836]
[1730210478199,39.4506836,179.94,179.88,39.4506836]
[1730210478575,39.4506836,179.94,179.89,39.4506836]
[1730210478775,39.4506836,179.93,179.88,39.4506836]
[1730210478980,39.4506836,179.92,179.87,39.4506836]
[1730210479398,39.4506836,179.91,179.87,39.4506836]
[1730210479581,39.4506836,179.92,179.87,39.4506836]
[1730210479776,39.4506836,179.91,179.87,39.4506836]
[1730210479991,39.4506836,179.92,179.87,39.4506836]
[1730210481192,39.4506836,179.94,179.89,39.4506836]
[1730210481920,39.4506836,179.9,179.85,39.4506836]
[1730210482105,39.4506836,179.93,179.88,39.4506836]
[1730210482307,39.4506836,179.94,179.89,39.4506836]
[1730210484311,63.2275676,179.95,179.9,39.4506836]
[1730210484523,39.4506836,179.96,179.91,39.4506836]
[1730210484704,39.4506836,179.99,179.94,39.4506836]
[1730210484892,39.4506836,180.01,179.95,39.4506836]
[1730210485208,39.4506836,180.03,179.98,39.4506836]
[1730210485585,16.5984,180.04,179.99,39.4506836]
[1730210486016,39.4506836,180.03,179.98,39.4506836]
[1730210486715,56.0490836,180.04,179.99,39.4506836]
[1730210487014,39.4506836,180.03,179.98,39.4506836]
[1730210487512,39.4506836,180.01,179.96,39.4506836]
[1730210487712,16.5984,180.04,179.95,39.4506836]
[1730210487713,39.4506836,180.0,179.95,39.4506836]
[1730210487916,39.4506836,180.01,179.96,39.4506836]
[1730210488113,39.4506836,180.0,179.95,39.4506836]
[1730210488288,39.4506836,180.01,179.96,39.4506836]
[1730210488909,39.4506836,180.01,179.95,39.4506836]
[1730210489896,39.4506836,180.0,179.95,39.4506836]
[1730210491005,56.0490836,180.04,179.99,39.4506836]
[1730210491192,16.5984,180.04,179.99,39.4506836]
[1730210491389,39.4506836,180.03,179.98,39.4506836]
[1730210491590,39.4506836,180.02,179.97,39.4506836]
[1730210492401,39.4506836,180.01,179.96,39.4506836]
[1730210492585,39.4506836,180.0,179.95,39.4506836]
[1730210493185,39.4506836,180.01,179.96,39.4506836]
[1730210493392,39.4506836,180.03,179.98,39.4506836]
[1730210494009,39.4506836,180.02,179.97,39.4506836]
[1730210494416,39.4506836,180.03,179.98,39.4506836]
[1730210495230,39.4506836,180.01,179.96,39.4506836]
[1730210495390,39.4506836,179.98,179.93,39.4506836]
[1730210495707,39.4506836,179.99,179.94,39.4506836]
[1730210495906,39.4506836,180.0,179.95,39.4506836]
[1730210496104,39.4506836,180.01,179.96,39.4506836]
[1730210496496,39.4506836,180.02,179.97,39.4506836]
[1730210497791,39.4506836,179.99,179.94,39.4506836]
[1730210498300,39.4506836,180.0,179.95,39.4506836]
[1730210498505,39.4506836,180.0,179.9,5.5586]
[1730210498506,39.4506836,180.03,179.98,39.4506836]
[1730210498807,39.4506836,180.06,180.02,39.4506836]